fUSD/lending_fUSD_20251001
["ID","MTS","AMOUNT","RATE_DAILY","PERIOD"]
[388794342,1759362666793,-500.0,0.00022465,2]
[388794343,1759362666804,-500.0,0.00022465,2]
[388794344,1759362666815,-175.470885,0.00022465,7]
[388794345,1759362666827,-986.5,0.00022465,2]
[388794346,1759362666838,-175.470885,0.00022465,7]
[388794347,1759362666851,-466.869576,0.00022465,7]
[388794348,1759362666865,-2204.13,0.00022465,2]
[388794349,1759362666877,-175.470885,0.00022465,7]
[388794350,1759362666891,-2843.92,0.00022465,2]
[388794351,1759362666904,-466.869576,0.00022465,7]
[388794352,1759362666915,-151.0,0.00022465,7]
[388794353,1759362666926,-175.470885,0.00022465,7]
[388794354,1759362666938,-151.0,0.00022465,7]
[388794355,1759362666949,-500.0,0.00022465,2]
[388794356,1759362666961,-466.869576,0.00022465,7]
[388794357,1759362666972,-1266.38,0.00022465,2]
[388794358,1759362666983,-151.0,0.00022465,7]
[388794359,1759362666995,-466.869576,0.00022465,7]
[388794360,1759362667006,-151.0,0.00022465,7]
[388794361,1759362667017,-735.26,0.00022465,2]
[388794362,1759362667029,-500.0,0.00022465,2]
[388794363,1759362667040,-151.0,0.00022465,7]
[388794364,1759362667051,-1233.17,0.00022465,2]
[388794365,1759362667064,-612.987468,0.00022465,7]
[388794366,1759362667075,-2066.69,0.00022465,2]
[388794367,1759362667087,-1840.83,0.00022465,2]
[388794368,1759362667098,-500.0,0.00022465,2]
[388794369,1759362667110,-202.611587,0.00022465,7]
[388794370,1759362667121,-612.987468,0.00022465,7]
[388794371,1759362667132,-2392.43,0.00022465,2]
[388794372,1759362667143,-202.611587,0.00022465,7]
[388794373,1759362667154,-583.94,0.00022465,2]
[388794374,1759362667165,-202.611587,0.00022465,7]
[388794375,1759362667177,-500.0,0.00022465,2]
[388794376,1759362667188,-559.61,0.00022465,2]
[388794377,1759362667200,-807.25,0.00022465,2]
[388794378,1759362667210,-782.19,0.00022465,2]
[388794379,1759362667221,-151.0,0.00022465,7]
[388794380,1759362667232,-991.18,0.00022465,2]
[388794381,1759362667244,-500.0,0.00022465,2]
[388794382,1759362667255,-152.873331,0.00022465,7]
[388794383,1759362667266,-151.0,0.00022465,7]
[388794384,1759362667277,-568.12,0.00022465,2]
[388794385,1759362667288,-4428.45,0.00022465,2]
[388794386,1759362667299,-151.0,0.00022465,7]
[388794387,1759362667310,-151.0,0.00022465,2]
[388794388,1759362667322,-3124.54,0.00022465,2]
[388794389,1759362667333,-151.0,0.00022465,7]
[388794390,1759362667344,-202.611587,0.00022465,7]
[388794391,1759362667355,-727.53,0.00022465,2]
[388794392,1759362667366,-500.0,0.00022465,2]
[388794393,1759362667377,-2207.36,0.00022465,2]
[388794394,1759362667388,-596.39,0.00022465,2]
[388794395,1759362667400,-500.0,0.00022465,2]
[388794396,1759362667414,-151.0,0.00022465,7]
[388794397,1759362667426,-2257.51,0.00022465,2]
[388794398,1759362667438,-500.0,0.00022465,2]
[388794399,1759362667451,-160.0,0.00022465,14]
[388794400,1759362667462,-160.0,0.00022465,14]
[388794401,1759362667473,-160.0,0.00022465,14]
[388794402,1759362667485,-160.0,0.00022465,14]
[388794403,1759362667497,-160.0,0.00022465,14]
[388794404,1759362667508,-160.0,0.00022465,14]
[388794405,1759362667520,-151.0,0.00022465,7]
[388794406,1759362667531,-160.0,0.00022465,14]
[388794407,1759362667542,-160.0,0.00022465,14]
[388794408,1759362667553,-160.0,0.00022465,14]
[388794409,1759362667564,-181.190236,0.00022465,14]
[388794410,1759362667575,-500.0,0.00022465,2]
[388794411,1759362667587,-500.0,0.00022465,2]
[388794412,1759362667598,-500.0,0.00022465,2]
[388794413,1759362667609,-2274.93,0.00022465,2]
[388794414,1759362667620,-1942.3,0.00022465,2]
[388794415,1759362667631,-500.0,0.00022465,2]
[388794416,1759362667643,-1986.12,0.00022465,2]
[388794417,1759362667653,-2392.21,0.00022465,2]
[388794418,1759362667665,-151.0,0.00022465,7]
[388794419,1759362667676,-151.0,0.00022465,7]
[388794420,1759362667687,-151.0,0.00022465,7]
[388794421,1759362667698,-500.0,0.00022465,2]
[388794422,1759362667709,-373.4026557,0.00022465,2]
[388794423,1759362667721,-500.0,0.00022465,2]
[388794424,1759362667732,-3766.76,0.00022465,2]
[388794425,1759362667743,-500.0,0.00022465,2]
[388794426,1759362667754,-500.0,0.00022465,2]
[388794427,1759362667765,-2102.99,0.00022465,2]
[388794428,1759362667776,-151.0,0.00022465,7]
[388794429,1759362667787,-500.0,0.00022465,2]
[388794430,1759362667798,-151.0,0.00022465,7]
[388794431,1759362667809,-151.0,0.00022465,7]
[388794432,1759362667819,-502.58,0.00022465,2]
[388794433,1759362667830,-151.0,0.00022465,7]
[388794434,1759362667840,-500.0,0.00022465,2]
[388794435,1759362667851,-151.0,0.00022465,7]
[388794436,1759362667862,-500.0,0.00022465,2]
[388794437,1759362667873,-1556.26,0.00022465,2]
[388794438,1759362667884,-1351.0,0.00022465,2]
[388794439,1759362667895,-151.0,0.00022465,7]
[388794440,1759362667906,-370.018219,0.00022465,7]
[388794441,1759362667916,-6015.6,0.00022465,2]
[388794442,1759362667927,-918.42,0.00022465,2]
[388794443,1759362667939,-151.0,0.00022465,7]
[388794444,1759362667950,-370.018219,0.00022465,7]
[388794445,1759362667961,-506.37,0.00022465,2]
[388794446,1759362667973,-222.857189,0.00022465,7]
[388794447,1759362667983,-151.0,0.00022465,7]
[388794448,1759362667994,-3573.75,0.00022465,2]
[388794449,1759362668005,-370.018219,0.00022465,7]
[388794450,1759362668017,-151.0,0.00022465,7]
[388794451,1759362668028,-1785.86,0.00022465,2]
[388794452,1759362668040,-151.0,0.00022465,7]
[388794453,1759362668051,-370.018219,0.00022465,7]
[388794454,1759362668062,-151.0,0.00022465,7]
[388794455,1759362668074,-500.0,0.00022465,2]
[388794456,1759362668085,-857.5,0.00022465,2]
[388794457,1759362668096,-151.0,0.00022465,7]
[388794458,1759362668107,-500.0,0.00022465,2]
[388794459,1759362668118,-1803.38,0.00022465,2]
[388794460,1759362668129,-230.85422,0.00022465,7]
[388794461,1759362668140,-151.0,0.00022465,7]
[388794462,1759362668152,-500.0,0.00022465,2]
[388794463,1759362668165,-521.68,0.00022465,2]
[388794464,1759362668177,-2138.53,0.00022465,2]
[388794465,1759362668189,-222.857189,0.00022465,7]
[388794466,1759362668201,-230.85422,0.00022465,7]
[388794467,1759362668212,-500.0,0.00022465,2]
[388794468,1759362668224,-222.857189,0.00022465,7]
[388794469,1759362668236,-230.85422,0.00022465,7]
[388794470,1759362668248,-500.0,0.00022465,2]
[388794471,1759362668259,-3388.62,0.00022465,2]
[388794472,1759362668271,-222.857189,0.00022465,7]
[388794473,1759362668282,-230.85422,0.00022465,7]
[388794474,1759362668294,-151.0,0.00022465,7]
[388794475,1759362668305,-4468.6,0.00022465,2]
[388794476,1759362668316,-151.0,0.00022465,7]
[388794477,1759362668327,-2921.93,0.00022465,2]
[388794478,1759362668339,-6005.72,0.00022465,2]
[388794479,1759362668351,-596.943927,0.00022465,7]
[388794480,1759362668363,-151.0,0.00022465,7]
[388794481,1759362668374,-1619.46,0.00022465,2]
[388794482,1759362668383,-4263.18,0.00022465,2]
[388794483,1759362668392,-596.16,0.00022465,2]
[388794484,1759362668403,-151.0,0.00022465,7]
[388794485,1759362668415,-296.716977,0.00022465,7]
[388794486,1759362668425,-596.943927,0.00022465,7]
[388794487,1759362668434,-500.0,0.00022465,2]
[388794488,1759362668443,-500.0,0.00022465,2]
[388794489,1759362668452,-500.0,0.00022465,2]
[388794490,1759362669253,-596.943927,0.00022465,7]
[388794491,1759362669279,-151.0,0.00022465,7]
[388794492,1759362669300,-596.943927,0.00022465,7]
[388794493,1759362669314,-543.84,0.00022465,2]
[388794494,1759362669324,-2290.71,0.00022465,2]
[388794495,1759362669333,-151.0,0.00022465,7]
[388794496,1759362669342,-500.0,0.00022465,2]
[388794497,1759362669351,-1679.55,0.00022465,2]
[388794498,1759362669360,-2497.92,0.00022465,2]
[388794499,1759362669370,-500.0,0.00022465,2]
[388794500,1759362669379,-905.43,0.00022465,2]
[388794501,1759362669388,-1319.16,0.00022465,2]
[388794502,1759362669397,-500.0,0.00022465,2]
[388794503,1759362669411,-500.0,0.00022465,2]
[388794504,1759362669420,-500.0,0.00022465,2]
[388794505,1759362669430,-192.070344,0.00022465,7]
[388794506,1759362669440,-500.0,0.00022465,2]
[388794507,1759362669451,-2883.28,0.00022465,2]
[388794508,1759362669460,-1862.48,0.00022465,2]
[388794509,1759362669470,-192.070344,0.00022465,7]
[388794510,1759362669481,-500.0,0.00022465,2]
[388794511,1759362669491,-5973.32,0.00022465,2]
[388794512,1759362669500,-1046.15,0.00022465,2]
[388794513,1759362669509,-7710.0,0.00022465,2]
[388794514,1759362669519,-192.070344,0.00022465,7]
[388794515,1759362669528,-500.0,0.00022465,2]
[388794516,1759362669537,-151.0,0.00022465,7]
[388794517,1759362669546,-3390.31,0.00022465,2]
[388794518,1759362669555,-192.070344,0.00022465,7]
[388794519,1759362669564,-500.0,0.00022465,2]
[388794520,1759362669574,-500.0,0.00022465,2]
[388794521,1759362669583,-500.0,0.00022465,2]
[388794522,1759362669592,-684.51,0.00022465,2]
[388794523,1759362669601,-151.0,0.00022465,7]
[388794524,1759362669611,-234.90174,0.00022465,7]
[388794525,1759362669619,-151.0,0.00022465,7]
[388794526,1759362669629,-798.36,0.00022465,2]
[388794527,1759362669638,-234.90174,0.00022465,7]
[388794528,1759362669647,-645.288161,0.00022465,7]
[388794529,1759362669657,-877.57,0.00022465,2]
[388794530,1759362669667,-1461.45,0.00022465,2]
[388794531,1759362669676,-6908.38,0.00022465,2]
[388794532,1759362669687,-500.0,0.00022465,2]
[388794533,1759362669697,-171.14495641,0.00022465,2]
[388794534,1759362669707,-234.90174,0.00022465,7]
[388794535,1759362669716,-437.190733,0.00022465,7]
[388794536,1759362669725,-645.288161,0.00022465,7]
[388794537,1759362669735,-234.90174,0.00022465,7]
[388794538,1759362669744,-620.57,0.00022465,2]
[388794539,1759362669754,-1097.13,0.00022465,2]
[388794540,1759362669763,-2034.39,0.00022465,2]
[388794541,1759362669773,-967.51,0.00022465,2]
[388794542,1759362669782,-525.55123068,0.00022465,2]
[388794543,1759362669792,-437.190733,0.00022465,7]
[388794544,1759362669801,-437.190733,0.00022465,7]
[388794545,1759362669811,-500.0,0.00022465,2]
[388794546,1759362669820,-437.190733,0.00022465,7]
[388794547,1759362669830,-500.0,0.00022465,2]
[388794548,1759362669840,-6141.65,0.00022465,2]
[388794549,1759362669850,-2372.9,0.00022465,2]
[388794550,1759362669859,-645.288161,0.00022465,7]
[388794551,1759362669869,-2138.66,0.00022465,2]
[388794552,1759362669878,-617.05,0.00022465,2]
[388794553,1759362669887,-645.288161,0.00022465,7]
[388794554,1759362669896,-1431.57715,0.00022465,7]
[388794555,1759362669905,-2312.38,0.00022465,2]
[388794556,1759362669915,-1431.57715,0.00022465,7]
[388794557,1759362669924,-500.0,0.00022465,2]
[388794558,1759362669935,-500.0,0.00022465,2]
[388794559,1759362669944,-500.0,0.00022465,2]
[388794560,1759362669954,-500.0,0.00022465,2]
[388794561,1759362669963,-151.0,0.00022465,7]
[388794562,1759362669973,-1431.57715,0.00022465,7]
[388794563,1759362669983,-4709.96,0.00022465,2]
[388794564,1759362669992,-238.31536,0.00022465,7]
[388794565,1759362670002,-500.0,0.00022465,2]
[388794566,1759362670012,-1431.57715,0.00022465,7]
[388794567,1759362670022,-151.0,0.00022465,7]
[388794568,1759362670032,-2058.63,0.00022465,2]
[388794569,1759362670041,-5644.91,0.00022465,2]
[388794570,1759362670051,-755.86,0.00022465,2]
[388794571,1759362670060,-621.85,0.00022465,2]
[388794572,1759362670070,-500.0,0.00022465,2]
[388794573,1759362670080,-7452.65,0.00022465,2]
[388794574,1759362670091,-151.0,0.00022465,7]
[388794575,1759362670100,-500.12,0.00022465,2]
[388794576,1759362670109,-500.0,0.00022465,2]
[388794577,1759362670119,-4657.49,0.00022465,2]
[388794578,1759362670128,-1052.18,0.00022465,2]
[388794579,1759362670138,-4399.55,0.00022465,2]
[388794580,1759362670147,-151.0,0.00022465,7]
[388794581,1759362670157,-500.0,0.00022465,2]
[388794582,1759362670166,-500.0,0.00022465,2]
[388794583,1759362670176,-151.0,0.00022465,7]
[388794584,1759362670186,-151.0,0.00022465,7]
[388794585,1759362670195,-978.64,0.00022465,2]
[388794586,1759362670204,-2732.62,0.00022465,2]
[388794587,1759362670213,-983.89,0.00022465,2]
[388794588,1759362670222,-1638.48,0.00022465,2]
[388794589,1759362670231,-3129.91,0.00022465,2]
[388794590,1759362670241,-151.0,0.00022465,7]
[388794591,1759362670250,-500.0,0.00022465,2]
[388794592,1759362670259,-500.0,0.00022465,2]
[388794593,1759362670269,-676.2,0.00022465,2]
[388794594,1759362670278,-531.18,0.00022465,2]
[388794595,1759362670287,-500.0,0.00022465,2]
[388794596,1759362670298,-5607.44,0.00022465,2]
[388794597,1759362670307,-8025.23,0.00022465,2]
[388794598,1759362670316,-6358.04,0.00022465,2]
[388794599,1759362670325,-500.0,0.00022465,2]
[388794600,1759362670335,-1081.69,0.00022465,2]
[388794601,1759362670344,-5348.87,0.00022465,2]
[388794602,1759362670353,-30575.98,0.00022465,2]
[388794603,1759362670364,-500.0,0.00022465,2]
[388794604,1759362670373,-151.0,0.00022465,7]
[388794605,1759362670382,-500.0,0.00022465,2]
[388794606,1759362670392,-500.0,0.00022465,2]
[388794607,1759362670403,-500.0,0.00022465,2]
[388794608,1759362670416,-151.0,0.00022465,7]
[388794609,1759362670426,-500.0,0.00022465,2]
[388794610,1759362670436,-500.0,0.00022465,2]
[388794611,1759362670447,-151.0,0.00022465,7]
[388794612,1759362670457,-2099.83,0.00022465,2]
[388794613,1759362670467,-323.4,0.00022465,2]
[388794614,1759362670480,-2516.56,0.00022465,2]
[388794615,1759362670489,-500.0,0.00022465,2]
[388794616,1759362670499,-500.0,0.00022465,2]
[388794617,1759362670508,-1844.0,0.00022465,2]
[388794618,1759362670517,-1959.23,0.00022465,2]
[388794619,1759362670527,-754.37,0.00022465,2]
[388794620,1759362670536,-3137.78,0.00022465,2]
[388794621,1759362670546,-500.0,0.00022465,2]
[388794622,1759362670555,-2245.26,0.00022465,2]
[388794623,1759362670565,-2019.16,0.00022465,2]
[388794624,1759362670574,-514.87,0.00022465,2]
[388794625,1759362670583,-151.0,0.00022465,7]
[388794626,1759362670593,-6197.75,0.00022465,2]
[388794627,1759362670602,-151.0,0.00022465,7]
[388794628,1759362670612,-500.0,0.00022465,2]
[388794629,1759362670621,-1664.22,0.00022465,2]
[388794630,1759362670631,-925.37,0.00022465,2]
[388794631,1759362670641,-151.0,0.00022465,7]
[388794632,1759362670651,-151.0,0.00022465,7]
[388794633,1759362670661,-10447.97,0.00022465,2]
[388794634,1759362670670,-1570.67,0.00022465,2]
[388794635,1759362670679,-6405.86,0.00022465,2]
[388794636,1759362670689,-151.58675,0.00022465,7]
[388794637,1759362670698,-2900.3,0.00022465,2]
[388794638,1759362670708,-500.0,0.00022465,2]
[388794639,1759362670717,-2560.37,0.00022465,2]
[388794640,1759362670728,-151.58675,0.00022465,7]
[388794641,1759362670737,-790.09,0.00022465,2]
[388794642,1759362670747,-1361.64,0.00022465,2]
[388794643,1759362670756,-151.58675,0.00022465,7]
[388794644,1759362670765,-500.0,0.00022465,2]
[388794645,1759362670774,-151.58675,0.00022465,7]
[388794646,1759362670784,-598.88,0.00022465,2]
[388794647,1759362670794,-4942.17,0.00022465,2]
[388794648,1759362670803,-6517.42,0.00022465,2]
[388794649,1759362670813,-8359.17,0.00022465,2]
[388794650,1759362670822,-1325.66,0.00022465,2]
[388794651,1759362670832,-805.7,0.00022465,2]
[388794652,1759362670841,-151.0,0.00022465,7]
[388794653,1759362670851,-834.03,0.00022465,2]
[388794654,1759362670860,-500.0,0.00022465,2]
[388794655,1759362670869,-2717.08,0.00022465,2]
[388794656,1759362670879,-1535.59,0.00022465,2]
[388794657,1759362670888,-3013.31,0.00022465,2]
[388794658,1759362670898,-500.0,0.00022465,2]
[388794659,1759362670912,-259.028209,0.00022465,7]
[388794660,1759362670922,-7631.39,0.00022465,2]
[388794661,1759362670932,-151.0,0.00022465,7]
[388794662,1759362670942,-613.48,0.00022465,2]
[388794663,1759362670952,-2961.79,0.00022465,2]
[388794664,1759362670962,-3655.32,0.00022465,2]
[388794665,1759362670972,-754.86,0.00022465,2]
[388794666,1759362670981,-1349.46,0.00022465,2]
[388794667,1759362670991,-3562.23,0.00022465,2]
[388794668,1759362671001,-5909.65,0.00022465,2]
[388794669,1759362671010,-151.0,0.00022465,7]
[388794670,1759362671020,-2116.81,0.00022465,2]
[388794671,1759362671030,-506.94,0.00022465,2]
[388794672,1759362671039,-151.0,0.00022465,7]
[388794673,1759362671049,-500.0,0.00022465,2]
[388794674,1759362671059,-3199.27,0.00022465,2]
[388794675,1759362671068,-500.0,0.00022465,2]
[388794676,1759362671077,-151.0,0.00022465,7]
[388794677,1759362671087,-2770.08,0.00022465,2]
[388794678,1759362671096,-7315.82,0.00022465,2]
[388794679,1759362671106,-2762.91,0.00022465,2]
[388794680,1759362671116,-6984.67,0.00022465,2]
[388794681,1759362671125,-958.14,0.00022465,2]
[388794682,1759362671134,-601.824768,0.00022465,7]
[388794683,1759362671144,-500.0,0.00022465,2]
[388794684,1759362671153,-500.0,0.00022465,2]
[388794685,1759362671163,-601.824768,0.00022465,7]
[388794686,1759362671173,-2066.48,0.00022465,2]
[388794687,1759362671182,-500.0,0.00022465,2]
[388794688,1759362671192,-601.824768,0.00022465,7]
[388794689,1759362671202,-500.0,0.00022465,2]
[388794690,1759362671212,-500.0,0.00022465,2]
[388794691,1759362671221,-1692.55,0.00022465,2]
[388794692,1759362671230,-601.824768,0.00022465,7]
[388794693,1759362671239,-844.55,0.00022465,2]
[388794694,1759362671248,-500.0,0.00022465,2]
[388794695,1759362671258,-2704.99,0.00022465,2]
[388794696,1759362671268,-3042.27,0.00022465,2]
[388794697,1759362671277,-500.0,0.00022465,2]
[388794698,1759362671287,-1570.24,0.00022465,2]
[388794699,1759362671296,-2957.82,0.00022465,2]
[388794700,1759362671306,-2112.82,0.00022465,2]
[388794701,1759362671315,-1693.04,0.00022465,2]
[388794702,1759362671325,-2144.41,0.00022465,2]
[388794703,1759362671335,-500.0,0.00022465,2]
[388794704,1759362671345,-1711.11,0.00022465,2]
[388794705,1759362671354,-510.16196244,0.00022465,2]
[388794706,1759362671364,-500.0,0.00022465,2]
[388794707,1759362671373,-609.35,0.00022465,2]
[388794708,1759362671383,-500.0,0.00022465,2]
[388794709,1759362671392,-500.0,0.00022465,2]
[388794710,1759362671402,-6851.58,0.00022465,2]
[388794711,1759362671416,-799.42,0.00022465,2]
[388794712,1759362671426,-766.89,0.00022465,2]
[388794713,1759362671436,-500.0,0.00022465,2]
[388794714,1759362671445,-1980.75,0.00022465,2]
[388794715,1759362671457,-3590.55,0.00022465,2]
[388794716,1759362671467,-500.0,0.00022465,2]
[388794717,1759362671477,-546.04,0.00022465,2]
[388794718,1759362671489,-1941.89,0.00022465,2]
[388794719,1759362671600,-755.74,0.00022465,2]
[388794720,1759362671611,-500.0,0.00022465,2]
[388794721,1759362671621,-1294.23,0.00022465,2]
[388794722,1759362671630,-4714.76,0.00022465,2]
[388794723,1759362671639,-3225.33,0.00022465,2]
[388794724,1759362671649,-13701.78,0.00022465,2]
[388794725,1759362671658,-1519.63,0.00022465,2]
[388794726,1759362671667,-893.0,0.00022465,2]
[388794727,1759362671676,-1753.11,0.00022465,2]
[388794728,1759362671685,-151.0,0.00022465,7]
[388794729,1759362671694,-4944.15,0.00022465,2]
[388794730,1759362671703,-2647.17,0.00022465,2]
[388794731,1759362671712,-537.34,0.00022465,2]
[388794732,1759362671721,-786.03,0.00022465,2]
[388794733,1759362671730,-500.0,0.00022465,2]
[388794734,1759362671739,-5047.54,0.00022465,2]
[388794735,1759362671747,-1109.7,0.00022465,2]
[388794736,1759362671756,-346.05188268,0.00022465,2]
[388794737,1759362671766,-12839.4,0.00022465,2]
[388794738,1759362671775,-151.0,0.00022465,7]
[388794739,1759362671784,-500.0,0.00022465,2]
[388794740,1759362671794,-3385.772056,0.00022465,7]
[388794741,1759362671803,-1080.58,0.00022465,2]
[388794742,1759362671812,-3927.97,0.00022465,2]
[388794743,1759362671821,-3385.772056,0.00022465,7]
[388794744,1759362671830,-500.0,0.00022465,2]
[388794745,1759362671839,-3385.772056,0.00022465,7]
[388794746,1759362671848,-2440.26,0.00022465,2]
[388794747,1759362671856,-1726.18,0.00022465,2]
[388794748,1759362671866,-151.0,0.00022465,7]
[388794749,1759362671875,-3774.25,0.00022465,2]
[388794750,1759362671884,-1192.69,0.00022465,2]
[388794751,1759362671893,-2448.5,0.00022465,2]
[388794752,1759362671902,-500.0,0.00022465,2]
[388794753,1759362671911,-3385.772056,0.00022465,7]
[388794754,1759362671920,-1022.92,0.00022465,2]
[388794755,1759362671929,-500.0,0.00022465,2]
[388794756,1759362671939,-650.630205,0.00022465,7]
[388794757,1759362671948,-2203.11,0.00022465,2]
[388794758,1759362671958,-2844.39,0.00022465,2]
[388794759,1759362671967,-1170.62,0.00022465,2]
[388794760,1759362671976,-500.0,0.00022465,2]
[388794761,1759362671985,-650.630205,0.00022465,7]
[388794762,1759362671994,-151.0,0.00022465,7]
[388794763,1759362672004,-4369.62,0.00022465,2]
[388794764,1759362672013,-650.630205,0.00022465,7]
[388794765,1759362672022,-500.0,0.00022465,2]
[388794766,1759362672031,-2902.27,0.00022465,2]
[388794767,1759362672040,-650.630205,0.00022465,7]
[388794768,1759362672049,-500.0,0.00022465,2]
[388794769,1759362672058,-2156.29,0.00022465,2]
[388794770,1759362672067,-500.0,0.00022465,2]
[388794771,1759362672076,-151.0,0.00022465,7]
[388794772,1759362672085,-156.505696,0.00022465,7]
[388794773,1759362672095,-500.0,0.00022465,2]
[388794774,1759362672104,-200.77479169,0.00022465,2]
[388794775,1759362672113,-1533.21,0.00022465,2]
[388794776,1759362672123,-6249.12,0.00022465,2]
[388794777,1759362672132,-15165.03,0.00022465,2]
[388794778,1759362672142,-592.817457,0.00022465,2]
[388794779,1759362672151,-4255.09,0.00022465,2]
[388794780,1759362672160,-151.0,0.00022465,7]
[388794781,1759362672169,-7888.21,0.00022465,2]
[388794782,1759362672179,-500.0,0.00022465,2]
[388794783,1759362672188,-592.817457,0.00022465,2]
[388794784,1759362672198,-592.817457,0.00022465,2]
[388794785,1759362672208,-592.817457,0.00022465,2]
[388794786,1759362672217,-11707.92,0.00022465,2]
[388794787,1759362672226,-500.0,0.00022465,2]
[388794788,1759362672236,-6236.58,0.00022465,2]
[388794789,1759362672245,-500.0,0.00022465,2]
[388794790,1759362672254,-500.0,0.00022465,2]
[388794791,1759362672264,-10185.58,0.00022465,2]
[388794792,1759362672273,-7746.7,0.00022465,2]
[388794793,1759362672282,-3678.61,0.00022465,2]
[388794794,1759362672292,-6476.68,0.00022465,2]
[388794795,1759362672301,-1729.41,0.00022465,2]
[388794796,1759362672311,-500.0,0.00022465,2]
[388794797,1759362672321,-500.0,0.00022465,2]
[388794798,1759362672330,-1262.89,0.00022465,2]
[388794799,1759362672339,-1775.36,0.00022465,2]
[388794800,1759362672349,-2735.11,0.00022465,2]
[388794801,1759362672357,-3184.89,0.00022465,2]
[388794802,1759362672366,-3394.33,0.00022465,2]
[388794803,1759362672375,-500.0,0.00022465,2]
[388794804,1759362672385,-6422.93,0.00022465,2]
[388794805,1759362672394,-500.0,0.00022465,2]
[388794806,1759362672406,-2423.95,0.00022465,2]
[388794807,1759362672417,-572.3,0.00022465,2]
[388794808,1759362672427,-783.2,0.00022465,2]
[388794809,1759362672437,-500.0,0.00022465,2]
[388794810,1759362672447,-500.0,0.00022465,2]
[388794811,1759362672457,-534.21,0.00022465,2]
[388794812,1759362672466,-7212.29,0.00022465,2]
[388794813,1759362672477,-525.92,0.00022465,2]
[388794814,1759362672487,-2284.87,0.00022465,2]
[388794815,1759362672496,-959.21,0.00022465,2]
[388794816,1759362672506,-691.6,0.00022465,2]
[388794817,1759362672516,-2916.36,0.00022465,2]
[388794818,1759362672526,-4053.05,0.00022465,2]
[388794819,1759362672535,-151.0,0.00022465,7]
[388794820,1759362672544,-1060.61,0.00022465,2]
[388794821,1759362672554,-500.0,0.00022465,2]
[388794822,1759362672564,-4229.97,0.00022465,2]
[388794823,1759362672574,-517.87,0.00022465,2]
[388794824,1759362672583,-500.0,0.00022465,2]
[388794825,1759362672593,-1419.72,0.00022465,2]
[388794826,1759362672602,-22460.71,0.00022465,2]
[388794827,1759362672611,-1834.36,0.00022465,2]
[388794828,1759362672620,-441.93376516,0.00022465,2]
[388794829,1759362672630,-500.0,0.00022465,2]
[388794830,1759362672639,-794.78,0.00022465,2]
[388794831,1759362672649,-3216.47,0.00022465,2]
[388794832,1759362672659,-500.0,0.00022465,2]
[388794833,1759362672668,-500.0,0.00022465,2]
[388794834,1759362672678,-287.866376,0.00022465,7]
[388794835,1759362672687,-782.75,0.00022465,2]
[388794836,1759362672697,-500.0,0.00022465,2]
[388794837,1759362672706,-4670.23,0.00022465,2]
[388794838,1759362672717,-11258.74,0.00022465,2]
[388794839,1759362672726,-500.0,0.00022465,2]
[388794840,1759362672736,-500.0,0.00022465,2]
[388794841,1759362672745,-22932.32,0.00022465,2]